bitfinex-derivatives/quotes_BTCF0:USTF0_20241003
["timestamp","ask_amount","ask_price","bid_price","bid_amount"]
[1727970924564,0.082451,60652.0,60647.0,0.082456]
[1727970925464,0.082453,60650.0,60645.0,0.082459]
[1727970926254,0.3608,60646.0,60645.0,0.082459]
[1727970927258,0.3618,60646.0,60645.0,0.082459]
[1727970927658,0.3628,60646.0,60645.0,0.082459]
[1727970928761,0.3628,60646.0,60645.0,0.867139]
[1727970929163,0.3618,60646.0,60645.0,0.868139]
[1727970929855,0.3618,60646.0,60645.0,0.382459]
[1727970929856,0.3628,60646.0,60645.0,0.382459]
[1727970930162,0.3618,60646.0,60645.0,0.383459]
[1727970930470,0.3608,60651.0,60650.0,0.082452]
[1727970930858,0.3608,60651.0,60650.0,1.467092]
[1727970931055,0.00247377,60659.0,60658.0,0.082441]
[1727970931251,0.00247377,60659.0,60658.0,0.972441]
[1727970931455,0.04286672,60659.0,60658.0,1.467001]
[1727970931966,0.3608,60668.0,60658.0,1.38456]
[1727970932168,0.3608,60668.0,60667.0,0.082429]
[1727970932462,0.40119064,60668.0,60667.0,0.082429]
[1727970933169,0.40419064,60668.0,60667.0,0.082429]
[1727970933463,0.45481932,60668.0,60667.0,0.082429]
[1727970933665,0.60256467,60668.0,60667.0,0.082429]
[1727970933865,0.60256508,60668.0,60667.0,0.082429]
[1727970934065,0.45481973,60668.0,60667.0,0.082429]
[1727970934267,0.45581973,60668.0,60667.0,0.082429]
[1727970934462,0.082429,60667.0,60666.0,0.0185576]
[1727970934664,0.09101973,60667.0,60666.0,0.08243]
[1727970935164,0.23876599,60667.0,60666.0,0.08243]
[1727970935464,0.0403916,60667.0,60666.0,0.08243]
[1727970935872,0.0423916,60667.0,60666.0,0.08243]
[1727970936371,0.0433916,60667.0,60666.0,0.08243]
[1727970938264,0.33820052,60667.0,60666.0,0.08243]
[1727970938566,0.09402282,60667.0,60666.0,0.08243]
[1727970939073,0.25827658,60667.0,60666.0,0.08243]
[1727970939472,0.09402282,60667.0,60666.0,0.08243]
[1727970939765,0.25833936,60667.0,60666.0,0.08243]
[1727970939971,0.09402282,60667.0,60666.0,0.08243]
[1727970941868,0.24205446,60667.0,60666.0,0.08243]
[1727970942271,0.09401181,60667.0,60666.0,0.08243]
[1727970942665,0.0433916,60667.0,60666.0,0.08243]
[1727970943170,0.0433916,60667.0,60661.0,0.018933]
[1727970943364,0.082435,60663.0,60662.0,0.082434]
[1727970943564,0.0403916,60663.0,60662.0,0.082434]
[1727970944270,0.1228256,60663.0,60662.0,0.082434]
[1727970944468,0.0403916,60663.0,60662.0,0.082434]
[1727970944983,0.082436,60662.0,60661.0,0.086437]
[1727970945274,0.0403916,60662.0,60661.0,0.086437]
[1727970945467,0.1228276,60662.0,60661.0,0.086437]
[1727970945774,0.0403916,60662.0,60661.0,0.086437]
[1727970945981,0.04038616,60662.0,60661.0,1.541797]
[1727970946278,0.16431654,60670.0,60662.0,0.082436]
[1727970946465,0.05061808,60669.0,60668.0,0.372428]
[1727970946660,0.05061808,60669.0,60668.0,0.082428]
[1727970946867,0.29,60669.0,60661.0,0.36676]
[1727970947078,0.082434,60664.0,60663.0,0.082434]
[1727970947279,0.05061895,60664.0,60661.0,0.3648]
[1727970947482,0.14809301,60664.0,60663.0,0.082434]
[1727970947974,0.05061895,60664.0,60663.0,0.082434]
[1727970948167,0.52511654,60666.0,60663.0,0.002]
[1727970948370,0.50889228,60666.0,60663.0,0.002]
[1727970948671,0.50889228,60666.0,60665.0,0.082432]
[1727970948672,0.3608,60666.0,60665.0,0.082432]
[1727970949576,0.0506187,60666.0,60665.0,0.082432]
[1727970949879,0.0506187,60666.0,60661.0,0.004]
[1727970949880,0.01826171,60671.0,60662.0,0.082436]
[1727970950181,0.14809228,60672.0,60669.0,0.082426]
[1727970950370,0.1987111,60672.0,60663.0,0.082434]
[1727970950570,0.1987111,60672.0,60671.0,0.082424]
[1727970950767,0.05061882,60672.0,60671.0,0.082424]
[1727970951370,0.06922953,60672.0,60671.0,0.082424]
[1727970952079,0.06922781,60672.0,60671.0,0.082424]
[1727970952278,0.07622781,60672.0,60671.0,0.083424]
[1727970953069,0.22193441,60672.0,60671.0,0.083424]
[1727970953275,0.22193441,60672.0,60671.0,0.084424]
[1727970953276,0.06061787,60672.0,60671.0,0.084424]
[1727970953475,0.22524563,60672.0,60671.0,0.084424]
[1727970953679,0.06061787,60672.0,60671.0,0.084424]
[1727970954179,0.05038251,60672.0,60671.0,0.084424]
[1727970954379,0.15815726,60672.0,60671.0,0.084424]
[1727970954690,0.10100038,60672.0,60671.0,0.084424]
[1727970954882,0.05038251,60672.0,60671.0,0.084424]
[1727970955480,0.05038251,60672.0,60671.0,0.10291892]
[1727970955781,0.05038251,60672.0,60671.0,1.19739892]
[1727970955973,0.04338251,60672.0,60671.0,1.19739892]
[1727970956175,0.1481509,60676.0,60672.0,0.082422]
[1727970956176,0.1481509,60673.0,60672.0,0.082422]
[1727970956582,0.1481509,60680.0,60677.0,0.082415]
[1727970957383,0.1481509,60681.0,60680.0,0.082411]
[1727970957787,0.2305609,60681.0,60680.0,0.082411]
[1727970958086,0.08241,60681.0,60680.0,0.082411]
[1727970958290,0.37241,60681.0,60680.0,0.082411]
[1727970958585,0.38441,60681.0,60680.0,0.001]
[1727970958892,0.62483077,60681.0,60680.0,0.001]
[1727970959075,0.50605045,60681.0,60680.0,0.001]
[1727970959391,0.42364045,60681.0,60675.0,0.082418]
[1727970959579,0.082419,60675.0,60672.0,0.083422]
[1727970959886,0.08242,60674.0,60672.0,0.083422]
[1727970960085,0.08242,60674.0,60672.0,0.082422]
[1727970961089,0.14807169,60680.0,60668.0,0.082427]
[1727970961385,0.434911,60681.0,60677.0,0.082414]
[1727970962090,0.144911,60681.0,60679.0,0.082413]
[1727970962287,0.082411,60680.0,60679.0,0.082413]
[1727970962487,0.113211,60680.0,60679.0,0.082413]
[1727970964086,0.082413,60679.0,60677.0,0.001]
[1727970964286,0.082413,60679.0,60677.0,0.083414]
[1727970964588,0.0368,60680.0,60679.0,0.082413]
[1727970964786,0.0368,60680.0,60679.0,0.083413]
[1727970965089,0.0308,60680.0,60679.0,0.083413]
[1727970965293,0.823136,60753.0,60685.0,0.082405]
[1727970965294,0.13140095,60690.0,60685.0,0.082405]
[1727970965588,0.00247208,60695.0,60690.0,0.082398]
[1727970965589,0.00084,60691.0,60690.0,0.082398]
[1727970965783,0.00247208,60695.0,60694.0,0.082392]
[1727970967286,0.00247208,60695.0,60694.0,0.362392]
[1727970967593,0.00247208,60695.0,60694.0,0.083392]
[1727970967988,0.00647208,60695.0,60694.0,0.083392]
[1727970968690,0.00647208,60695.0,60694.0,0.363392]
[1727970968879,0.00647208,60695.0,60694.0,0.724192]
[1727970969083,1e-06,60695.0,60694.0,1.818472]
[1727970969791,1e-06,60695.0,60694.0,1.817472]
[1727970970697,1e-06,60695.0,60694.0,1.217472]
[1727970970893,1e-06,60695.0,60694.0,1.83586783]
[1727970971191,1e-06,60695.0,60694.0,1.34158783]
[1727970971392,1e-06,60695.0,60694.0,1.83586783]
[1727970971587,1e-06,60695.0,60694.0,0.74158783]
[1727970971785,1e-06,60695.0,60694.0,0.443192]
[1727970971987,0.082394,60693.0,60690.0,0.082397]
[1727970972288,0.361641,60695.0,60691.0,0.082396]
[1727970972594,0.082395,60693.0,60686.0,0.082402]
[1727970972889,0.082395,60692.0,60689.0,0.082398]
[1727970973092,0.082395,60692.0,60682.0,0.28]
[1727970973093,0.0824,60689.0,60682.0,0.082409]
[1727970973283,0.0824,60689.0,60686.0,0.082403]
[1727970973483,0.36164,60690.0,60681.0,0.28]
[1727970973685,0.3608,60690.0,60689.0,0.082399]
[1727970974291,0.3608,60690.0,60689.0,0.083399]
[1727970974794,0.0639,60698.0,60697.0,0.082388]
[1727970974986,0.3608,60700.0,60691.0,0.28]
[1727970975187,0.3608,60700.0,60699.0,0.082386]
[1727970977088,0.3638,60700.0,60699.0,0.083386]
[1727970977293,0.3638,60700.0,60699.0,0.001]
[1727970977495,0.446184,60700.0,60699.0,0.001]
[1727970977799,0.446184,60700.0,60699.0,0.002]
[1727970977800,0.3638,60700.0,60699.0,0.002]
[1727970977990,0.3638,60700.0,60699.0,0.084386]
[1727970978689,0.446184,60700.0,60699.0,0.002]
[1727970979089,0.446184,60700.0,60674.0,0.3608]
[1727970979090,1.74804,60700.0,60674.0,0.3608]
[1727970979284,1.74804,60700.0,60672.0,0.37978226]
[1727970979285,0.6508,60688.0,60672.0,0.37978226]
[1727970979488,0.082404,60686.0,60681.0,0.08241]
[1727970979687,0.0919,60687.0,60672.0,0.37978226]
[1727970979688,0.0919,60687.0,60672.0,0.3608]
[1727970979995,0.082407,60683.0,60679.0,0.082412]
[1727970980204,0.3608,60680.0,60664.0,0.29]
[1727970980388,0.372414,60678.0,60672.0,0.082422]
[1727970980690,0.082414,60678.0,60677.0,0.01647191]
[1727970980897,0.082414,60678.0,60677.0,0.02947191]
[1727970981096,0.3608,60680.0,60677.0,0.01547191]
[1727970981292,0.3608,60680.0,60677.0,0.09788691]
[1727970981488,0.3608,60680.0,60678.0,0.082414]
[1727970981897,0.3608,60680.0,60677.0,0.01547191]
[1727970982700,0.001,60678.0,60677.0,0.08488691]
[1727970983289,0.3618,60680.0,60677.0,0.08488691]
[1727970983900,0.3628,60680.0,60679.0,0.082413]
[1727970984200,0.001,60680.0,60679.0,0.372413]
[1727970984395,0.03114,60687.0,60679.0,0.29]
[1727970984396,0.0303,60687.0,60679.0,0.29]
[1727970984697,0.0303,60687.0,60686.0,0.082403]
[1727970984889,0.04918782,60687.0,60686.0,0.082403]
[1727970985701,0.05118782,60687.0,60686.0,0.082403]
[1727970986597,0.05118782,60687.0,60686.0,0.083403]
[1727970986598,0.06018782,60687.0,60686.0,0.083403]
[1727970987401,0.06818782,60687.0,60686.0,0.084403]
[1727970987695,1.45254782,60687.0,60686.0,0.002]
[1727970987998,0.03788782,60687.0,60686.0,0.084403]
[1727970988991,0.04606771,60687.0,60686.0,0.002]
[1727970989191,0.41846971,60687.0,60686.0,0.002]
[1727970989695,1.51282971,60687.0,60686.0,0.002]
[1727970989890,0.082403,60686.0,60660.0,0.0624]
[1727970990091,0.6508,60666.0,60660.0,0.0331]
[1727970990396,0.3608,60666.0,60665.0,0.082432]
[1727970991302,0.3618,60666.0,60665.0,0.082432]
[1727970991598,0.001,60666.0,60665.0,0.082432]
[1727970991991,0.001,60666.0,60665.0,0.095432]
[1727970992799,0.002,60666.0,60665.0,0.106432]
[1727970993113,0.49652,60666.0,60665.0,0.024]
[1727970993408,1.17895,60666.0,60665.0,0.024]
[1727970993597,1.17895,60666.0,60665.0,0.013]
[1727970993598,1.17795,60666.0,60665.0,0.013]
[1727970993794,0.001,60666.0,60665.0,0.097432]
[1727970994102,0.001,60666.0,60641.0,0.01852922]
[1727970994103,0.082434,60664.0,60641.0,0.01852922]
[1727970994403,0.29,60649.0,60645.0,0.082458]
[1727970994604,0.29,60649.0,60640.0,0.0316]
[1727970994796,0.3202,60649.0,60645.0,0.082459]
[1727970995497,0.082457,60647.0,60641.0,0.014]
[1727970995802,0.082457,60647.0,60643.0,0.082461]
[1727970995994,0.3608,60644.0,60643.0,0.082461]
[1727970996810,0.3608,60644.0,60643.0,0.088461]
[1727970997008,0.001,60647.0,60646.0,0.082458]
[1727970997304,0.001,60647.0,60646.0,0.372458]
[1727970998310,0.3608,60650.0,60646.0,0.29]
[1727970998497,0.3608,60650.0,60649.0,0.082453]
[1727970998801,0.0186449,60655.0,60647.0,0.0303]
[1727970999003,0.3608,60657.0,60652.0,0.082448]
[1727970999205,0.3608,60657.0,60652.0,0.082449]
[1727970999400,0.37911609,60657.0,60652.0,0.082449]
[1727971000799,0.37911609,60657.0,60653.0,0.082448]
[1727971001001,0.38411609,60657.0,60653.0,0.082448]
[1727971001202,0.38411609,60657.0,60647.0,0.0323]
[1727971001399,0.082445,60656.0,60651.0,0.08245]
[1727971001703,0.082445,60656.0,60651.0,0.082451]
[1727971002202,0.082447,60654.0,60651.0,0.082451]
[1727971002399,0.082453,60650.0,60646.0,0.082457]
[1727971002608,0.29,60647.0,60646.0,0.082457]
[1727971002898,0.29,60647.0,60638.0,0.0332]
[1727971003103,0.3608,60648.0,60638.0,0.0332]
[1727971003104,0.29,60639.0,60638.0,0.082468]
[1727971004407,0.291,60639.0,60638.0,0.084468]
[1727971004800,0.001,60639.0,60638.0,0.084468]
[1727971005405,0.3608,60648.0,60647.0,0.082456]
[1727971006600,0.6508,60648.0,60647.0,0.084456]
[1727971007014,0.3608,60648.0,60647.0,0.086456]
[1727971007507,0.3608,60655.0,60654.0,0.082447]
[1727971008801,0.3718,60655.0,60654.0,0.082447]
[1727971009300,0.011,60655.0,60654.0,0.082447]
[1727971010006,0.007,60655.0,60654.0,0.089447]
[1727971010312,0.36327404,60662.0,60661.0,0.082437]
[1727971011918,0.36427404,60662.0,60661.0,0.085437]
[1727971012220,0.44671004,60662.0,60661.0,0.085437]
[1727971013110,0.44771004,60662.0,60661.0,0.093437]
[1727971013304,0.36527404,60662.0,60661.0,0.093437]
[1727971013615,0.36427404,60662.0,60661.0,0.090437]
[1727971013914,0.36327404,60662.0,60661.0,0.083437]
[1727971014209,0.36327404,60662.0,60661.0,0.082437]
[1727971014410,0.36327404,60662.0,60661.0,0.087437]
[1727971014804,0.36327404,60662.0,60661.0,0.082437]
[1727971015009,0.36327404,60662.0,60661.0,0.085437]
[1727971015517,0.36327404,60662.0,60661.0,0.082437]
[1727971015718,0.082398,60690.0,60669.0,0.082426]
[1727971015719,0.00343277,60680.0,60669.0,0.082426]
[1727971015908,0.02099657,60680.0,60669.0,0.082426]
[1727971016214,0.082416,60677.0,60676.0,0.082414]
[1727971017012,0.00247276,60680.0,60676.0,0.28]
[1727971017217,0.00247276,60680.0,60679.0,0.082413]
[1727971018012,0.3608,60693.0,60692.0,0.082395]
[1727971018309,0.082373,60709.0,60692.0,0.082395]
[1727971018310,0.3608,60706.0,60692.0,0.28]
[1727971018518,0.3608,60706.0,60705.0,0.082377]
[1727971018708,0.3608,60712.0,60704.0,0.28]
[1727971018907,0.3608,60712.0,60711.0,0.082369]
[1727971019315,0.37971233,60712.0,60711.0,0.082369]
[1727971020216,0.37971233,60712.0,60707.0,0.082374]
[1727971020420,0.39271233,60712.0,60709.0,0.082372]
[1727971020610,0.39271233,60712.0,60704.0,0.001]
[1727971020810,0.28,60706.0,60704.0,0.001]
[1727971021011,0.3608,60705.0,60704.0,0.001]
[1727971021210,0.475577,60705.0,60704.0,0.001]
[1727971021418,0.082379,60704.0,60699.0,0.082385]
[1727971021624,0.28,60701.0,60699.0,0.082385]
[1727971022121,0.28,60701.0,60686.0,0.362402]
[1727971022426,0.28,60701.0,60699.0,0.001]
[1727971022427,0.082384,60700.0,60699.0,0.001]
[1727971023115,0.082384,60700.0,60699.0,0.002]
[1727971023311,1.466624,60700.0,60699.0,0.002]
[1727971023511,1.48499941,60700.0,60699.0,0.002]
[1727971023712,1.49399941,60700.0,60699.0,0.002]
[1727971023917,1.49399941,60700.0,60699.0,0.001]
[1727971024116,1.49399941,60700.0,60699.0,0.002]
[1727971024514,1.49399941,60700.0,60679.0,0.36327106]
[1727971024715,0.3608,60685.0,60682.0,0.082407]
[1727971024917,0.3608,60685.0,60684.0,0.082406]
[1727971025120,0.3608,60693.0,60681.0,0.08241]
[1727971025314,0.3608,60693.0,60692.0,0.082395]
[1727971026621,0.3608,60693.0,60679.0,0.01347106]
[1727971026622,0.75180319,60693.0,60679.0,0.01347106]
[1727971026819,0.001,60685.0,60684.0,0.082406]
[1727971027014,0.3618,60685.0,60682.0,0.008]
[1727971027216,0.082407,60683.0,60682.0,0.008]
[1727971027423,0.082407,60683.0,60679.0,0.00247106]
[1727971027424,0.0328,60684.0,60681.0,0.08241]
[1727971027724,0.0328,60684.0,60679.0,0.00247106]
[1727971027927,0.082411,60681.0,60679.0,0.00247106]
[1727971028226,0.082411,60680.0,60679.0,0.00247106]
[1727971029027,0.115207,60684.0,60679.0,0.00247106]
[1727971029327,0.443211,60680.0,60679.0,0.01247106]
[1727971029520,0.443211,60680.0,60679.0,0.01]
[1727971029718,1.4552,60680.0,60661.0,0.29]
[1727971029920,0.3618,60680.0,60666.0,0.29]
[1727971030321,0.3618,60680.0,60661.0,0.29]
[1727971030322,0.082421,60673.0,60661.0,0.29]
[1727971030521,0.082414,60679.0,60661.0,0.29]
[1727971030721,0.08242,60674.0,60661.0,0.29]
[1727971030916,0.082414,60679.0,60661.0,0.29]
[1727971031224,0.3618,60680.0,60667.0,0.082428]
[1727971031225,0.29,60676.0,60667.0,0.082428]
[1727971031527,0.3618,60680.0,60666.0,0.005]
[1727971031528,0.082429,60667.0,60666.0,0.005]
[1727971031718,0.3608,60668.0,60666.0,0.005]
[1727971032321,0.3608,60668.0,60667.0,0.082429]
[1727971032722,0.001,60674.0,60673.0,0.082421]
[1727971033727,0.443212,60680.0,60671.0,0.29]
[1727971033927,0.3608,60680.0,60678.0,0.082413]
[1727971034738,0.082412,60680.0,60678.0,0.082413]
[1727971034930,0.007,60680.0,60678.0,0.083413]
[1727971035133,0.007,60680.0,60679.0,0.082413]
[1727971036242,0.015,60680.0,60679.0,0.082413]
[1727971036942,0.008,60680.0,60679.0,0.082413]
[1727971037146,0.016,60680.0,60679.0,0.083413]
[1727971038038,0.016,60680.0,60679.0,0.001]
[1727971038234,0.098411,60680.0,60679.0,0.001]
[1727971038446,0.093411,60680.0,60676.0,0.082416]
[1727971038947,0.093411,60680.0,60677.0,0.082415]
[1727971039147,0.084411,60680.0,60677.0,0.082415]
[1727971039337,0.002,60680.0,60678.0,0.082414]
[1727971039743,0.002,60680.0,60679.0,0.082413]
[1727971039948,0.002,60680.0,60679.0,0.362413]
[1727971040137,0.082391,60695.0,60692.0,0.082395]
[1727971040138,0.0313,60695.0,60692.0,0.082395]
[1727971040337,0.3608,60697.0,60692.0,0.082395]
[1727971041138,0.3608,60697.0,60690.0,0.082397]
[1727971041139,0.082393,60694.0,60690.0,0.082397]
[1727971041342,0.29,60695.0,60680.0,0.0333]
[1727971041639,0.082407,60684.0,60680.0,0.115711]
[1727971041848,0.29,60683.0,60680.0,0.082411]
[1727971042042,0.29,60683.0,60679.0,0.00247205]
[1727971042043,0.3227,60683.0,60681.0,0.08241]
[1727971042551,0.0327,60683.0,60681.0,0.08241]
[1727971043139,0.0327,60683.0,60680.0,0.007]
[1727971043342,0.08241,60681.0,60680.0,0.007]
[1727971043950,0.0357,60683.0,60682.0,0.082409]
[1727971043951,0.003,60683.0,60682.0,0.082409]
[1727971044142,0.005,60683.0,60682.0,0.082409]
[1727971044851,0.003,60683.0,60682.0,0.082409]
[1727971045349,0.002,60683.0,60682.0,0.082409]
[1727971045740,0.002,60683.0,60679.0,0.00247205]
[1727971046048,0.082411,60681.0,60679.0,0.08488405]
[1727971046347,0.002,60683.0,60682.0,0.082409]
[1727971046750,0.082401,60688.0,60683.0,0.082406]
[1727971046751,0.082405,60685.0,60683.0,0.082406]
[1727971046949,0.082402,60687.0,60679.0,0.00347205]
[1727971047153,0.082411,60680.0,60679.0,0.00347205]
[1727971048148,0.083411,60680.0,60679.0,0.01047205]
[1727971048348,0.083411,60680.0,60679.0,0.00947205]
[1727971048741,0.002,60680.0,60673.0,0.08242]
[1727971049053,0.082419,60675.0,60673.0,0.08242]
[1727971049352,0.005,60680.0,60672.0,0.01875574]
[1727971049548,0.005,60680.0,60669.0,0.082426]
[1727971049748,0.087412,60680.0,60668.0,0.0632]
[1727971049949,0.005,60680.0,60679.0,0.082413]
[1727971050257,0.002,60680.0,60679.0,0.082413]
[1727971050749,0.082409,60682.0,60679.0,0.082413]
[1727971050941,0.082404,60686.0,60675.0,0.082417]
[1727971051140,0.082412,60680.0,60676.0,0.082417]
[1727971051343,0.3608,60677.0,60673.0,0.003]
[1727971051548,0.372419,60674.0,60673.0,0.003]
[1727971051748,0.12278961,60674.0,60668.0,0.01844307]
[1727971051947,0.082419,60674.0,60671.0,0.082423]
[1727971052153,0.082419,60674.0,60671.0,0.082422]
[1727971052343,0.082419,60674.0,60661.0,0.082437]
[1727971052344,0.082422,60672.0,60668.0,0.082426]
[1727971052546,0.082423,60672.0,60670.0,0.082424]
[1727971052751,0.08242,60674.0,60671.0,0.082423]
[1727971052951,0.10122056,60674.0,60671.0,0.082423]
[1727971053154,0.10122056,60674.0,60660.0,0.10122548]
[1727971053342,0.10222056,60674.0,60671.0,0.085422]
[1727971053542,0.001,60674.0,60673.0,0.087421]
[1727971054258,0.001,60674.0,60673.0,0.082421]
[1727971054259,0.002,60674.0,60673.0,0.082421]
[1727971054956,0.3608,60681.0,60676.0,0.082417]
[1727971055152,0.3608,60681.0,60680.0,0.082411]
[1727971056358,0.3608,60681.0,60673.0,0.008]
[1727971056553,0.082418,60676.0,60675.0,0.082417]
[1727971057043,0.082418,60676.0,60672.0,0.0641]
[1727971057044,0.082418,60676.0,60666.0,0.01908937]
[1727971057248,0.082425,60670.0,60669.0,0.082426]
[1727971057961,0.082418,60676.0,60670.0,0.082425]
[1727971058149,0.082426,60670.0,60668.0,0.082426]
[1727971058456,0.443222,60673.0,60665.0,0.0322]
[1727971058648,0.082434,60663.0,60661.0,0.082436]
[1727971059144,0.443231,60666.0,60662.0,0.082435]
[1727971059346,0.082432,60665.0,60662.0,0.082435]
[1727971059952,0.001,60663.0,60662.0,0.082435]
[1727971060153,0.001,60663.0,60661.0,0.003]
[1727971060644,0.083435,60663.0,60661.0,0.003]
[1727971061356,0.001,60663.0,60662.0,0.082436]
[1727971061859,0.3608,60666.0,60662.0,1.176956]
[1727971062154,0.3608,60666.0,60665.0,0.082432]
[1727971062750,0.37972241,60673.0,60665.0,0.443232]
[1727971062751,0.01892241,60673.0,60665.0,0.443232]
[1727971062945,0.3608,60666.0,60662.0,0.001]
[1727971063152,0.372434,60663.0,60662.0,0.001]
[1727971063358,0.41281063,60663.0,60662.0,0.004]
[1727971063558,0.41281063,60663.0,60662.0,0.003]
[1727971063559,0.90733063,60663.0,60662.0,0.003]
[1727971063855,0.33037663,60663.0,60658.0,0.00247289]
[1727971064052,0.3608,60659.0,60658.0,0.00247289]
[1727971064249,0.44324,60659.0,60658.0,0.00247289]
[1727971065956,0.44324,60659.0,60658.0,0.00547289]
[1727971065957,0.44424,60659.0,60658.0,0.00547289]
[1727971066155,0.44524,60659.0,60658.0,0.01247289]
[1727971066855,0.46433455,60659.0,60658.0,0.01247289]
[1727971067161,0.46433455,60659.0,60658.0,0.01]
[1727971067162,0.50471616,60659.0,60658.0,0.01]
[1727971067462,1.5249986,60659.0,60644.0,0.3608]
[1727971067664,0.372459,60645.0,60644.0,0.08246]
[1727971068155,0.372459,60645.0,60637.0,0.0317]
[1727971068357,0.0332,60649.0,60639.0,0.082467]
[1727971068358,0.29,60640.0,60639.0,0.082467]
[1727971068761,0.29,60644.0,60637.0,0.0317]
[1727971069059,0.0648,60649.0,60637.0,0.0317]
[1727971069060,0.29,60639.0,60637.0,0.114169]
[1727971069259,0.29,60639.0,60631.0,0.00247367]
[1727971069458,0.29,60633.0,60632.0,0.082477]
[1727971069760,0.29,60633.0,60631.0,0.00247367]
[1727971069761,0.6508,60637.0,60631.0,0.00247367]
[1727971069965,0.6508,60637.0,60636.0,0.082471]
[1727971070860,0.6518,60637.0,60636.0,0.082471]
[1727971071062,0.6518,60637.0,60635.0,0.082472]
[1727971071565,0.6518,60637.0,60631.0,0.00347367]
[1727971071756,0.6518,60637.0,60636.0,0.082471]
[1727971072963,0.6518,60637.0,60631.0,0.00247367]
[1727971073165,0.6528,60637.0,60634.0,0.082473]
[1727971073754,0.67108985,60637.0,60631.0,0.00247367]
[1727971073952,0.38108985,60637.0,60636.0,0.082471]
[1727971074253,0.3628,60637.0,60636.0,0.082471]
[1727971075064,0.002,60637.0,60636.0,0.082471]
[1727971076060,0.002,60637.0,60636.0,0.083471]
[1727971076265,0.3608,60644.0,60636.0,1.09576]
[1727971076464,0.3608,60644.0,60643.0,0.082462]
[1727971077466,0.3618,60644.0,60643.0,0.082462]
[1727971078162,0.3608,60644.0,60643.0,0.082462]
[1727971078365,0.082466,60640.0,60639.0,0.082466]
[1727971078566,0.29,60637.0,60636.0,0.08247]
[1727971078862,0.29,60637.0,60629.0,0.3608]
[1727971079064,0.29,60632.0,60631.0,0.08495167]
[1727971079568,0.29,60636.0,60635.0,0.082473]
[1727971080358,0.001,60632.0,60631.0,0.08795067]
[1727971080559,0.291,60632.0,60631.0,0.08795067]
[1727971080969,0.29,60632.0,60631.0,0.08495067]
[1727971081972,0.291,60632.0,60631.0,0.08695067]
[1727971082762,0.374477,60632.0,60631.0,0.00647367]
[1727971082963,0.374477,60632.0,60631.0,0.004]
[1727971084376,0.374477,60632.0,60631.0,0.086478]
[1727971085657,0.374477,60632.0,60631.0,0.004]
[1727971086971,0.082486,60626.0,60620.0,0.082492]
[1727971087171,0.29,60621.0,60620.0,0.082492]
[1727971087868,0.29,60621.0,60618.0,0.00247423]
[1727971088073,0.3608,60619.0,60607.0,0.0623]
[1727971088375,0.082496,60618.0,60612.0,0.082504]
[1727971088872,0.082499,60616.0,60608.0,0.082509]
[1727971089169,0.7216,60609.0,60600.0,0.0302]
[1727971089370,0.03,60608.0,60600.0,0.0302]
[1727971089578,0.03,60608.0,60602.0,0.082517]
[1727971089763,0.03,60608.0,60599.0,0.00247514]
[1727971089965,0.29,60600.0,60599.0,0.00247514]
[1727971090485,0.6508,60600.0,60599.0,0.00247514]
[1727971091070,0.66943515,60600.0,60598.0,0.082522]
[1727971091272,0.66943515,60600.0,60599.0,0.082521]
[1727971091977,0.66943515,60600.0,60585.0,0.06577588]
[1727971092276,0.67143515,60600.0,60585.0,0.06577588]
[1727971092570,0.67143515,60600.0,60597.0,0.082524]
[1727971092771,0.67143515,60600.0,60590.0,0.082532]
[1727971092977,0.29,60591.0,60590.0,0.082532]
[1727971093977,0.38143515,60600.0,60590.0,0.082532]
[1727971094278,0.29,60591.0,60590.0,0.082532]
[1727971094870,0.29,60597.0,60585.0,0.03497588]
[1727971095174,0.38143515,60600.0,60599.0,0.082521]
[1727971095370,0.001,60600.0,60599.0,0.082521]
[1727971095571,0.3608,60607.0,60604.0,0.082515]
[1727971095769,0.29,60606.0,60593.0,0.0321]
[1727971095970,0.29,60606.0,60605.0,0.082513]
[1727971097174,0.291,60606.0,60605.0,0.082513]
[1727971098680,0.001,60606.0,60605.0,0.082513]
[1727971098882,0.002,60606.0,60605.0,0.082513]
[1727971105183,0.084512,60606.0,60605.0,0.082513]
[1727971105390,0.002,60606.0,60605.0,0.082513]
[1727971106287,0.02107946,60606.0,60602.0,0.082517]
[1727971106591,0.29,60599.0,60597.0,0.082523]
[1727971106783,0.29,60598.0,60597.0,0.082523]
[1727971107175,0.29,60598.0,60592.0,0.00247533]
[1727971107374,0.372523,60598.0,60596.0,0.082526]
[1727971107580,0.29,60598.0,60597.0,0.082524]
[1727971108583,0.29,60598.0,60592.0,0.00247533]
[1727971108584,0.001,60598.0,60592.0,0.00247533]
[1727971108784,0.001,60598.0,60597.0,0.082524]
[1727971109482,0.3608,60606.0,60605.0,0.082513]
[1727971110379,0.3608,60612.0,60611.0,0.082505]
[1727971112079,0.3608,60612.0,60611.0,0.083505]
[1727971112480,0.3608,60612.0,60611.0,0.084505]
[1727971112997,0.3608,60623.0,60622.0,0.08249]
[1727971113491,0.082496,60618.0,60611.0,0.002]
[1727971113676,0.29,60613.0,60612.0,0.082504]
[1727971115088,0.372502,60613.0,60612.0,0.082504]
[1727971115387,0.3608,60623.0,60612.0,0.082504]
[1727971115388,0.29,60617.0,60612.0,0.082504]
[1727971115694,0.082492,60621.0,60612.0,0.082504]
[1727971116193,0.082492,60621.0,60619.0,0.082493]
[1727971116380,0.082493,60620.0,60619.0,0.082493]
[1727971116893,0.04040915,60620.0,60613.0,0.082502]